Workbook

Sheet Construction Calculator
H2: Use this calculator to determine the loan amount required to complete a residential construction project. The calculator shows the initial amount released at settlement (Initial Advance) and the borrower’s required contribution, including any contribution toward construction, if applicable.
A5: Residential Construction Calculator - BROKER v1.1 July 2026
A6: Applicant's Name
A8: Land | E8: Loan Amount | F8: 0
A9: Land Value (Market Value) | C9: 0 | H9: Construction Loan Summary
A10: Land Transaction Type | C10: Purchase | E10: On Completion
A11: =_xlfn.IFS(C10="Purchase", "Land Purchase Price", C10="Refinance", "Existing Mortgage", C10="Equity Release", "") -> Land Purchase Price | C11: 0 | E11: Market Value on Completion | F11: 0 | H11: Value on Completion | J11: =F11 -> 0
A12: State | C12: NSW | E12: LVR on Completion (max 80%) | F12: =F8/F11 ->  | H12: LVR on Completion | J12: =F12 -> 
A13: ORDE postcode location category | C13: Cat 1 | H13: Funds Required
E14: Loan To Cost | H14: =A11 -> Land Purchase Price | J14: =IF(C11>0, C11, "") -> 
A15: Build | E15: Build + inspection budget | F15: =C16+C18 -> 3000 | H15: Build Contract + Check cost variation | J15: =C16+C17 -> 0
A16: Building Contract | C16: 0 | E16: Out of contract variations | F16: =C17 -> 0 | H16: =A18 -> Budget for progress inspections | J16: =C18 -> 3000
A17: Out of contract variations | C17: 0 | E17: Setup Costs | F17: =C33 -> 1063 | H17: Stamp Duty + Transfer Fee | J17: =C37 -> 0
A18: Budget for progress inspections | C18: =IF(C16>=1500000, C16*5%, 3000) -> 3000 | E18: Aquisition Costs | F18: =C37 -> 0 | H18: ORDE/Broker/Gov't Fees | J18: =C33 -> 1063
E19: Land | F19: =IF(C10="Purchase", MIN(C9, C11), C9) -> 0 | H19: Total Funds Required | J19: =SUM(J14:J18) -> 4063
A20: Contributions | E20: Stamp Duty PAID (land settled <12m) | F20: 0
A21: Deposit Paid (Land) | C21: 0 | E21: Total Land + Build + Costs | F21: =SUM(F15:F20) -> 4063 | H21: Loan Amount | J21: =F8 -> 0
E22: Loan To Cost (max 80%) | F22: =F8/F21 -> 0 | H22: Deposit Paid | J22: =C21 -> 0
A23: Transaction Costs
A24: Setup Costs | H24: Funds retained for construction | J24: =F8-F25 -> -1063
A25: Application Fee | B25: 0.0125 | C25: =B25*F8 -> 0 | E25: Initial Advance at Settlement | F25: =ROUND(IF(F8-F15-F16<0, C33, MIN(MAX(F8-F15-F16,C33),F19*IF(C13="Cat 1",0.75, 0.7))), 0) -> 1063 | H25: Initial Loan Advance | J25: =F25 -> 1063
A26: Settlement Fee | B26: 0 | C26: =F8*B26 -> 0 | E26: Surplus/Contribution for Build | F26: =F8-F25-F15-F16 -> -4063 | H26: Contribution required at settlement | J26: =IF(F28 <0, ABS(F28), "No contribution at settlement") -> No contribution at settlement
A27: Broker's Mandate | B27: 0 | C27: =F8*B27 -> 0 | E27: =_xlfn.TEXTJOIN(" ", 1, "LVR against Land (max", IF(C13="Cat 1", "75%)", "70%)")) -> LVR against Land (max 75%) | F27: =F25/F19 ->  | H27: Contribution prior to the first progress drawdown | J27: =ABS(F26) -> 4063
A28: Mortgage Registration Fee | C28: =_xlfn.XLOOKUP(C12, Data!O4:O11, Data!R4:R11) -> 182.73 | E28: Surplus/Deficit at Settlement | F28: =F25-C38+C21-C11 -> 0 | H28: TOTAL contribution required prior to progress drawdown | J28: =IF((F26+F28) <0, ABS(F26+F28), "No contribution required") -> 4063
A29: Lender's Legals | C29: 880
A30: Title Insurance Fee | C30: =IF(AND(F8>0,F8<=4000000), _xlfn.XLOOKUP(F8,Data!C4:C9,_xlfn.XLOOKUP(C12,Data!D3:K3,Data!D4:K9,,,),,1,), ROUNDUP((F8/1000)*0.5*_xlfn.XLOOKUP(C12,Data!D3:K3,Data!D9:K9,,,),2)) -> 0 | H30: The above figures are based on the information available to us. They are subject to change including, but not limited to: solicitor's fees, third party fees, lender's fees, refinance fees and purchase adjustments.
A31: Borrower's Conveyancer | C31: 0
A32: Other - to be paid | C32: 0
A33: Total Setup Costs | C33: =ROUND(SUM(C25:C32), 0) -> 1063
A34: Acquisition Costs
A35: Stamp Duty | C35: =IF(C10="Purchase", VLOOKUP(C12, Data!O4:P11,2,FALSE),0) -> 0
A36: Transfer fee | C36: =IF(OR(C10<>"Purchase",C11=0), 0, _xlfn.IFS( C12="VIC",MIN(Data!U4,ROUND(Data!T4+(FLOOR(C11,1000)*2.34/1000),0)), C12="NSW",Data!R5, C12="ACT",Data!T9, C12="NT",Data!R10, C12="Tas",Data!T11, C12="SA",Data!T6+CEILING((C11-50000)/10000,1)*Data!U6, C12="QLD",IF(C11<=180000,C28,C28+(CEILING(C11,10000)-180000)*Data!T7/10000), C12="WA",_xlfn.IFS(C11<=120000,Data!T8,C11<=200000,Data!U8,C11<=2000000,Data!U8+(CEILING(C11,100000)-200000)*Data!V8/100000,C11>2000000,Data!W8+CEILING(C11,100000)*Data!V8/100000))) -> 0
A37: Total Aquisition Costs | C37: =ROUND(SUM(C35:C36),0) -> 0
A38: TOTAL TRANSACTION COSTS | C38: =C33+C37 -> 1063
A40: The information contained in this calculator is provided by ORDE Financial Pty Limited ACN 634 779 990 Australian Credit Licence 522079 and ORDE Capital Management Limited ACN 636 165 378 Australian Financial Services Licence 523150 Australian Credit Licence 523150 for illustrative purposes only and should not be regarded as a prediction, or as personal advice. Calculations are not forecasts or projections but is a tool that may assist you to make your own projections. The calculator is not intended to be a substitute for professional advice. The information in this calculator does not constitute an offer to lend, or imply the product is suitable for clients. Before acting on this general information, your client must consider its appropriateness having regard to their own objectives, financial situation and need and also seek independent financial, legal and taxation advice. No guarantee, warranty, or representation is given or implied as to the reliability or accuracy of the information use to compile each index or each calculation. ORDE Financial specifically disclaims any liability for any direct, indirect, incidental, consequential, or special damages or for any loss arising out of or in any way connected with the access to, reliance on, or use of this calculator.

Sheet Data (hidden)
C3: Residential | D3: ACT | E3: NSW | F3: NT | G3: QLD | H3: SA | I3: TAS | J3: VIC | K3: WA | L3: BASE | O3: State | P3: Stamp Duty (Constr.) | Q3: Stamp Duty (Develop.) | R3: Mortgage Registration | T3: Parameters for Trasfer fee | X3: Parameters for Stamp Duty
C4: 600000 | D4: =$L$4*$D$26*D27 -> 132 | E4: =$L$4*$D$26*E27 -> 143.88 | F4: 145.2 | G4: 143.88 | H4: 146.52 | I4: 145.2 | J4: 145.2 | K4: 145.2 | L4: 120 | O4: VIC | P4: =ROUND(IF('Construction Calculator'!C11>X4, ('Construction Calculator'!C11-X4)*0.065+Y4, IF('Construction Calculator'!C11>Z4,'Construction Calculator'!C11*0.055,IF('Construction Calculator'!C11>AA4,AB4 + ('Construction Calculator'!C11-AA4)*0.06, IF('Construction Calculator'!C11> AC4, AD4 + ('Construction Calculator'!C11-AC4)*0.024, 'Construction Calculator'!C11*0.014)))),) -> 0 | R4: 139.5 | T4: 114.8 | U4: 3624 | X4: 2000000 | Y4: 110000 | Z4: 960000 | AA4: 130000 | AB4: 2870 | AC4: 25000 | AD4: 350
C5: 1000000 | D5: =$L$5*$D$26*D27 -> 237.6 | E5: =$L$5*$D$26*E27 -> 258.984 | F5: 261.36 | G5: 258.984 | H5: 263.736 | I5: 261.36 | J5: 261.36 | K5: 261.36 | L5: 216 | O5: NSW | P5: =IF('Construction Calculator'!C11>0, IF('Construction Calculator'!C11>X5,CEILING(('Construction Calculator'!C11-X5)/100,1)*7+Y5, IF('Construction Calculator'!C11>Z5,CEILING(('Construction Calculator'!C11-Z5)/100,1)*5.5+AA5,IF('Construction Calculator'!C11>AB5,CEILING(('Construction Calculator'!C11-AB5)/100,1)*4.5+AC5, IF('Construction Calculator'!C11>AD5, CEILING(('Construction Calculator'!C11-AD5)/100,1)*3.5+AE5)))), 0) -> 0 | R5: 182.73 | X5: 3870000 | Y5: 194137 | Z5: 1290000 | AA5: 52237 | AB5: 387000 | AC5: 11602 | AD5: 103000 | AE5: 1662
C6: 2000000 | D6: =$L$6*$D$26*D27 -> 475.2 | E6: =$L$6*$D$26*E27 -> 517.968 | F6: 522.72 | G6: 517.968 | H6: 527.472 | I6: 522.72 | J6: 522.72 | K6: 522.72 | L6: 432 | O6: SA | P6: =IF('Construction Calculator'!C11 > X6, Y6 + 0.055 * ('Construction Calculator'!C11 - X6), IF('Construction Calculator'!C11 > Z6, AA6 + 0.05 * ('Construction Calculator'!C11 - Z6), IF('Construction Calculator'!C11 > AB6, AC6 + 0.0475 * ('Construction Calculator'!C11 - AB6), IF('Construction Calculator'!C11 > AD6, AE6 + 0.0425 * ('Construction Calculator'!C11 - AD6), IF('Construction Calculator'!C11 > AF6, AG6 + 0.04 * ('Construction Calculator'!C11- AF6), IF('Construction Calculator'!C11 > AH6, AI6 + 0.035 * ('Construction Calculator'!C11- AH6), IF('Construction Calculator'!C11 > 30000, 480 + 0.03 * ('Construction Calculator'!C11 - 30000), IF('Construction Calculator'!C11 > 12000, 120 + 0.02 * ('Construction Calculator'!C11 - 12000), 0.01 * 'Construction Calculator'!C11) ))))))) -> 0 | R6: 204 | T6: 353 | U6: 105 | X6: 500000 | Y6: 21330 | Z6: 300000 | AA6: 11330 | AB6: 250000 | AC6: 8955 | AD6: 200000 | AE6: 6830 | AF6: 100000 | AG6: 2830 | AH6: 50000 | AI6: 1080
C7: 3000000 | D7: =$L$7*$D$26*D27 -> 712.8 | E7: =$L$7*$D$26*E27 -> 776.952 | F7: 784.08 | G7: 776.952 | H7: 791.208 | I7: 784.08 | J7: 784.08 | K7: 784.08 | L7: 648 | O7: QLD | P7: =ROUND( IF('Construction Calculator'!C11 > X7, Y7 + 0.0575 * ('Construction Calculator'!C11 - X7), IF('Construction Calculator'!C11 > Z7, AA7 + 0.045 * ('Construction Calculator'!C11 - Z7), IF('Construction Calculator'!C11 > AB7, AC7 + 0.035 * ('Construction Calculator'!C11 - AB7), IF('Construction Calculator'!C11 > AD7, 0.015 * ('Construction Calculator'!C11 - AD7), 0)))),) -> 0 | R7: 248.04 | T7: 46.56 | X7: 1000000 | Y7: 38025 | Z7: 540000 | AA7: 17325 | AB7: 75000 | AC7: 1050 | AD7: 5000
C8: 4000000 | D8: =$L$8*$D$26*D27 -> 950.4 | E8: =$L$8*$D$26*E27 -> 1035.936 | F8: 1045.44 | G8: 1035.936 | H8: 1054.944 | I8: 1045.44 | J8: 1045.44 | K8: 1045.44 | L8: 864 | O8: WA | P8: =IF('Construction Calculator'!C11 > X8, Y8 + 0.0515 * (CEILING('Construction Calculator'!C11, 100) - X8), IF('Construction Calculator'!C11 > Z8, AA8 + 0.0475 * (CEILING('Construction Calculator'!C11,100) - Z8), IF('Construction Calculator'!C11 > AB8, AC8 + 0.038 * (CEILING('Construction Calculator'!C11,100) - AB8), IF('Construction Calculator'!C11 > AD8, AE8 + 0.0285 * (CEILING('Construction Calculator'!C11,100) - AD8), 0.019 * CEILING('Construction Calculator'!C11,100)) ))) -> 0 | R8: 225.1 | T8: 235.1 | U8: 255.1 | V8: 20 | W8: 615.1 | X8: 725000 | Y8: 28453 | Z8: 360000 | AA8: 11115 | AB8: 150000 | AC8: 3135 | AD8: 120000 | AE8: 2280
C9: 4000001 | D9: =ROUND($D$26*D27, 2) -> 1.1 | E9: =ROUND($D$26*E27, 2) -> 1.2 | F9: 1.21 | G9: 1.2 | H9: 1.22 | I9: 1.21 | J9: 1.21 | K9: 1.21 | O9: ACT | P9: =IF('Construction Calculator'!C11 > X9, 0.0454 * 'Construction Calculator'!C11, IF('Construction Calculator'!C11 > Z9, Y9 + 0.064 * ('Construction Calculator'!C11- Z9), IF('Construction Calculator'!C11 > AB9, AA9 + 0.059 * ('Construction Calculator'!C11 - AB9), IF('Construction Calculator'!C11 > AD9, AC9 + 0.0432 * ('Construction Calculator'!C11 - AD9), IF('Construction Calculator'!C11 > AF9, AE9 + 0.034 * ('Construction Calculator'!C11 - AF9), IF('Construction Calculator'!C11 > AH9, AG9 + 0.022 * ('Construction Calculator'!C11 - AH9), MAX(0.012*'Construction Calculator'!C11,20) )))))) -> 20 | R9: 184 | T9: 496 | X9: 1455000 | Y9: 36950 | Z9: 1000000 | AA9: 22200 | AB9: 750000 | AC9: 11400 | AD9: 500000 | AE9: 4600 | AF9: 300000 | AG9: 2400 | AH9: 200000 | AI9: 2100000
B10: additional security same state | D10: =ROUND(ROUND(ROUND($L$10,1)*$D$26,2)*D27,2) -> 95.04 | E10: =ROUND(ROUND(ROUND($L$10,1)*$D$26,2)*E27,2) -> 103.59 | F10: 104.54 | G10: 103.59 | H10: 105.49 | I10: 104.54 | J10: 104.54 | K10: 104.54 | L10: 86.36363636 | O10: NT | P10: =MROUND( IF('Construction Calculator'!C11 > X10, 0.0595 * 'Construction Calculator'!C11, IF('Construction Calculator'!C11 > Y10, 0.0575 * 'Construction Calculator'!C11, IF('Construction Calculator'!C11 > Z10, 0.0495 *'Construction Calculator'!C11, 0.06571441 * ((('Construction Calculator'!C11/1000)^2)) + 15 * ('Construction Calculator'!C11/1000)))),0.05) -> 0 | R10: 181 | X10: 5000000 | Y10: 3000000 | Z10: 525000
O11: TAS | P11: =IF('Construction Calculator'!C11 > X11, Y11 + 0.045 * (CEILING('Construction Calculator'!C11,100) - X11), IF('Construction Calculator'!C11 > Z11, AA11 + 0.0425 * (CEILING('Construction Calculator'!C11,100) - Z11), IF('Construction Calculator'!C11 > AB11, AC11 + 0.04 * (CEILING('Construction Calculator'!C11,100) - AB11), IF('Construction Calculator'!C11 > AD11, AE11 + 0.035 * (CEILING('Construction Calculator'!C11,100) - AD11), IF('Construction Calculator'!C11 > AF11, AG11 + 0.0225 * (CEILING('Construction Calculator'!C11,100) - AF11), IF('Construction Calculator'!C11 > AH11, AI11 + 0.0175 * (CEILING('Construction Calculator'!C11,100) - AH11), AI11) ))))) -> 50 | R11: 167.58 | T11: 256.76 | X11: 725000 | Y11: 27810 | Z11: 375000 | AA11: 12935 | AB11: 200000 | AC11: 5935 | AD11: 75000 | AE11: 1560 | AF11: 25000 | AG11: 435 | AH11: 3000 | AI11: 50
Q12: Owner Occupied
O13: Residential | Q13: Investment | R13: Yes
O14: Commercial | Q14: Purchase | R14: No
O15: Yes | Q15: Refinance | R15: ORDE
C16: Commercial | D16: ACT | E16: NSW | F16: NT | G16: QLD | H16: SA | I16: TAS | J16: VIC | K16: WA | O16: No | Q16: Equity Release | R16: OFI
A17: 1 | B17: 1 | C17: 500000 | D17: =(($D$23*$D$26)*D27) -> 330 | E17: =(($D$23*$D$26)*E27) -> 359.7 | F17: 363 | G17: 359.7 | H17: 366.3 | I17: 363 | J17: 363 | K17: 363
A18: 2 | B18: 500001 | C18: 500,001 - 999,999,999 | D18: =(SUM('Construction Calculator'!$N$26, -$C$17)/1000*0.6+$D$23)*D27*$D$26 -> 0 | E18: =(SUM('Construction Calculator'!$N$26, -$C$17)/1000*0.6+$D$23)*E27*$D$26 -> 0 | F18: =(SUM('Construction Calculator'!$N$26, -$C$17)/1000*0.6+$D$23)*F27*$D$26 -> 0 | G18: =(SUM('Construction Calculator'!$N$26, -$C$17)/1000*0.6+$D$23)*G27*$D$26 -> 0 | H18: =(SUM('Construction Calculator'!$N$26, -$C$17)/1000*0.6+$D$23)*H27*$D$26 -> 0 | I18: =(SUM('Construction Calculator'!$N$26, -$C$17)/1000*0.6+$D$23)*I27*$D$26 -> 0 | J18: =(SUM('Construction Calculator'!$N$26, -$C$17)/1000*0.6+$D$23)*J27*$D$26 -> 0 | K18: =(SUM('Construction Calculator'!$N$26, -$C$17)/1000*0.6+$D$23)*K27*$D$26 -> 0
C23: BASE RATE | D23: 300
C26: GST | D26: 1.1 | M26: Yes | N26: Cat 1 | O26: $ Value | P26: houses
C27: Stamp duty | D27: 1 | E27: 1.09 | F27: 1.1 | G27: 1.09 | H27: 1.11 | I27: 1.1 | J27: 1.1 | K27: 1.1 | M27: No | N27: Cat 2 | O27: % | P27: townhouses
P28: apartments
A69: WA | B69: RESI | J69: Commecial
B70: DUTIABLE VALUE | D70: DUTY THRESHOLDS | J70: DUTIABLE VALUE | M70: DUTY THRESHOLDS
B71: $0 – $120,000 | D71: $1.90 per $100 or part thereof | J71: $0 – $80,000 | M71: $1.90 per $100 or part thereof
B72: $120,001 – $150,000 | D72: $2,280 + $2.85 per $100 or part thereof above $120,000 | J72: $80,001 - $100,000 | M72: $1,520 + $2.85 per $100 or part thereof above $80,000
B73: $150,001 – $360,000 | D73: $ 3,135 + $3.80 per $100 or part thereof above $150,000 | J73: $100,001 – $250,000 | M73: $2,090 + $3.80 per $100 or part thereof above $100,000
B74: $360,001 – $725,000 | D74: $11,115 + $4.75 per $100 or part thereof above $360,000 | J74: $250,001 – $500,000 | M74: $7,790 + $4.75 per $100 or part thereof above $250,000
B75: $725,001 and upwards | D75: $28,453 + $5.15 per $100 or part thereof above $725,000 | J75: $500,001 and upwards | M75: $19,665 + $5.15 per $100 or part thereof above $500,000
